fUST/lending_fUST_20250808
["ID","MTS","AMOUNT","RATE_DAILY","PERIOD"]
[377929672,1754614247043,-158.01201257,0.00022873,2]
[377929673,1754614247053,-500.0,0.00022873,2]
[377929676,1754614247064,-500.0,0.00022873,2]
[377929678,1754614247076,-500.0,0.00022873,2]
[377929680,1754614247087,-500.0,0.00022873,2]
[377929682,1754614247098,-500.0,0.00022873,2]
[377929684,1754614247109,-500.5727922,0.00022873,2]
[377929686,1754614247120,-500.0,0.00022873,2]
[377929688,1754614247130,-500.0,0.00022873,2]
[377929690,1754614247141,-500.0,0.00022873,2]
[377929692,1754614247155,-500.0,0.00022873,2]
[377929693,1754614247165,-500.0,0.00022873,2]
[377929696,1754614247176,-500.0,0.00022873,2]
[377929697,1754614247187,-500.0,0.00022873,2]
[377929699,1754614247199,-500.0,0.00022873,2]
[377929701,1754614247209,-504.05394247,0.00022873,2]
[377929703,1754614247219,-500.0,0.00022873,2]
[377929705,1754614247231,-500.0,0.00022873,2]
[377929708,1754614247244,-500.0,0.00022873,2]
[377929710,1754614247257,-500.0,0.00022873,2]
[377929712,1754614247268,-500.0,0.00022873,2]
[377929713,1754614247279,-500.0,0.00022873,2]
[377929715,1754614247290,-500.0,0.00022873,2]
[377929717,1754614247300,-500.0,0.00022873,2]
[377929720,1754614247311,-500.0,0.00022873,2]
[377929721,1754614247321,-500.0,0.00022873,2]
[377929722,1754614247332,-500.0,0.00022873,2]
[377929723,1754614247343,-500.0,0.00022873,2]
[377929724,1754614247353,-500.0,0.00022873,2]
[377929725,1754614247363,-500.0,0.00022873,2]
[377929726,1754614247375,-553.01407841,0.00022873,2]
[377929727,1754614247385,-500.0,0.00022873,2]
[377929728,1754614247395,-501.61245497,0.00022873,2]
[377929729,1754614247406,-626.61151428,0.00022873,2]
[377929731,1754614247415,-1000.0,0.00022873,2]
[377929733,1754614247425,-923.90496737,0.00022873,2]
[377929735,1754614247435,-160.0,0.00022881,2]
[377929737,1754614247444,-160.36555178,0.00022899,2]
[377929739,1754614247454,-151.0,0.00022899,7]
[377929741,1754614247463,-151.0,0.00022899,7]
[377929743,1754614247473,-151.0,0.00022899,7]
[377929745,1754614247483,-151.0,0.00022899,7]
[377929747,1754614247493,-151.0,0.00022899,7]
[377929749,1754614247504,-151.0,0.00022899,7]
[377929751,1754614247515,-245.896876,0.00022899,7]
[377929753,1754614247525,-213.478478,0.00022899,7]
[377929755,1754614247535,-213.478478,0.00022899,7]
[377929757,1754614247545,-151.0,0.00022899,7]
[377929759,1754614247557,-256.224555,0.00022899,7]
[377929761,1754614247567,-256.224555,0.00022899,7]
[377929763,1754614247579,-200.0,0.00022899,2]
[377929765,1754614247589,-906.29468983,0.00022899,2]
[377929767,1754614247599,-236.37438684,0.00022899,2]
[377929769,1754614247610,-906.29468983,0.00022899,2]
[377929771,1754614247620,-906.29468983,0.00022899,2]
[377929773,1754614247629,-906.29468983,0.00022899,2]
[377929775,1754614247640,-906.29468983,0.00022899,2]
[377929777,1754614247649,-906.29468983,0.00022899,2]
[377929779,1754614247659,-906.29468983,0.00022899,2]
[377929781,1754614247669,-906.29468983,0.00022899,2]
[377929783,1754614247678,-906.29468983,0.00022899,2]
[377929785,1754614247688,-906.29468983,0.00022899,2]
[377929787,1754614247697,-906.29468983,0.00022899,2]
[377929789,1754614247707,-906.29468983,0.00022899,2]
[377929791,1754614247717,-906.29468983,0.00022899,2]
[377929793,1754614247727,-906.29468983,0.00022899,2]
[377929795,1754614247737,-906.29468983,0.00022899,2]
[377929797,1754614247746,-906.29468983,0.00022899,2]
[377929799,1754614247758,-4486.66250676,0.000229,2]
[377929801,1754614247768,-219099.48377021,0.000229,7]
[377929803,1754614247778,-151.0,0.000229,7]
[377929805,1754614247788,-237.564252,0.000229,7]
[377929807,1754614247798,-237.564252,0.000229,7]
[377929810,1754614247808,-151.0,0.000229,7]
[377929811,1754614247818,-151.0,0.000229,7]
[377929814,1754614247828,-151.0,0.000229,7]
[377929816,1754614247837,-151.0,0.000229,7]
[377929818,1754614247847,-151.0,0.000229,7]
[377929820,1754614247856,-353.228551,0.000229,7]
[377929822,1754614247866,-151.0,0.000229,7]
[377929824,1754614247876,-151.0,0.000229,7]
[377929826,1754614247886,-151.0,0.000229,7]
[377929828,1754614247896,-151.0,0.000229,7]
[377929830,1754614247906,-151.0,0.000229,7]
[377929833,1754614247918,-151.0,0.000229,7]
[377929835,1754614247927,-151.0,0.000229,7]
[377929837,1754614247938,-151.0,0.000229,7]
[377929839,1754614247947,-151.0,0.000229,7]
[377929841,1754614247957,-151.0,0.000229,7]
[377929843,1754614247967,-151.0,0.000229,7]
[377929845,1754614247977,-151.0,0.000229,7]
[377929847,1754614247988,-151.0,0.000229,7]
[377929849,1754614247998,-151.0,0.000229,7]
[377929851,1754614248013,-151.0,0.000229,7]
[377929853,1754614248023,-151.0,0.000229,7]
[377929855,1754614248034,-151.0,0.000229,7]
[377929857,1754614248044,-151.0,0.000229,7]
[377929859,1754614248056,-151.0,0.000229,7]
[377929861,1754614248066,-604.580499,0.000229,7]
[377929863,1754614248077,-555.59487,0.000229,7]
[377929865,1754614248088,-604.580499,0.000229,7]
[377929867,1754614248098,-555.59487,0.000229,7]
[377929869,1754614248108,-151.0,0.000229,7]
[377929871,1754614248119,-151.0,0.000229,7]
[377929873,1754614248129,-151.0,0.000229,7]
[377929875,1754614248139,-151.0,0.000229,7]
[377929877,1754614248154,-151.0,0.000229,7]
[377929879,1754614248165,-151.0,0.000229,7]
[377929881,1754614248175,-151.0,0.000229,7]
[377929883,1754614248187,-151.0,0.000229,7]
[377929885,1754614248198,-151.0,0.000229,7]
[377929887,1754614248208,-151.0,0.000229,7]
[377929889,1754614248217,-151.0,0.000229,7]
[377929891,1754614248227,-151.0,0.000229,7]
[377929893,1754614248238,-299.597932,0.000229,7]
[377929895,1754614248248,-151.0,0.000229,7]
[377929897,1754614248259,-151.0,0.000229,7]
[377929899,1754614248269,-299.597932,0.000229,7]
[377929901,1754614248279,-151.0,0.000229,7]
[377929903,1754614248288,-151.0,0.000229,7]
[377929905,1754614248298,-151.0,0.000229,7]
[377929907,1754614248308,-151.0,0.000229,7]
[377929909,1754614248317,-151.0,0.000229,7]
[377929911,1754614248327,-151.0,0.000229,7]
[377929913,1754614248337,-247.927842,0.000229,7]
[377929915,1754614248346,-151.0,0.000229,7]
[377929917,1754614248356,-229.913091,0.000229,7]
[377929919,1754614248365,-151.0,0.000229,7]
[377929921,1754614248375,-151.0,0.000229,7]
[377929923,1754614248385,-151.0,0.000229,7]
[377929925,1754614248394,-151.0,0.000229,7]
[377929927,1754614248404,-1304.521677,0.000229,7]
[377929929,1754614248414,-213.478478,0.000229,7]
[377929931,1754614248423,-1304.521677,0.000229,7]
[377929933,1754614248433,-213.478478,0.000229,7]
[377929935,1754614248442,-151.0,0.000229,7]
[377929937,1754614248452,-151.0,0.000229,7]
[377929939,1754614248462,-256.224555,0.000229,7]
[377929941,1754614248472,-256.224555,0.000229,7]
[377929944,1754614248483,-151.0,0.000229,7]
[377929946,1754614248493,-461.3695942,0.000229,3]
[377929947,1754614248504,-461.3695942,0.000229,7]
[377929950,1754614248514,-168.49292,0.000229,7]
[377929952,1754614248524,-151.0,0.000229,7]
[377929953,1754614248534,-211.823902,0.000229,7]
[377929956,1754614248543,-151.0,0.000229,7]
[377929958,1754614248553,-211.823902,0.000229,7]
[377929960,1754614248563,-151.0,0.000229,7]
[377929962,1754614248573,-151.0,0.000229,7]
[377929964,1754614248583,-1339.76205271,0.00023,2]
[377929966,1754614248593,-160.0,0.00023,2]
[377929968,1754614248604,-312.16666667,0.00023,3]
[377929970,1754614248614,-231.83071243,0.00023,3]
[377929972,1754614248625,-160.0,0.00023,3]
[377929974,1754614248635,-842.63596909,0.00023,3]
[377929976,1754614248645,-216.52217562,0.00023,3]
[377929978,1754614248654,-527.57568145,0.00023,3]
[377929980,1754614248664,-160.0,0.00023,3]
[377929982,1754614248674,-160.0,0.00023,3]
[377929984,1754614248683,-160.0,0.00023,3]
[377929986,1754614248694,-460.0,0.00023013,2]
[377929988,1754614248703,-460.0,0.00023013,2]
[377929990,1754614248713,-460.0,0.00023013,2]
[377929992,1754614248722,-460.0,0.00023013,2]
[377929994,1754614248732,-460.0,0.00023013,2]
[377929996,1754614248742,-460.0,0.00023013,2]
[377929998,1754614248753,-460.0,0.00023013,2]
[377930000,1754614248763,-460.0,0.00023013,2]
[377930002,1754614248774,-460.0,0.00023013,2]
[377930004,1754614248784,-460.0,0.00023013,2]
[377930006,1754614248794,-460.0,0.00023013,2]
[377930008,1754614248804,-460.0,0.00023013,2]
[377930010,1754614248815,-460.0,0.00023013,2]
[377930012,1754614248825,-473.77,0.00023013,2]
[377930014,1754614248835,-460.0,0.00023013,2]
[377930016,1754614248845,-460.0,0.00023013,2]
[377930018,1754614248855,-460.0,0.00023013,2]
[377930020,1754614248865,-460.0,0.00023013,2]
[377930022,1754614248875,-888.39,0.00023013,2]
[377930024,1754614248885,-460.0,0.00023013,2]
[377930026,1754614248896,-1321.14,0.00023013,2]
[377930028,1754614248906,-460.0,0.00023013,2]
[377930030,1754614248916,-701.29,0.00023013,2]
[377930032,1754614248927,-460.0,0.00023013,2]
[377930034,1754614248937,-150.0,0.00023013,2]
[377930036,1754614248946,-1644.58,0.00023013,2]
[377930038,1754614248957,-460.0,0.00023013,2]
[377930040,1754614248967,-460.0,0.00023013,2]
[377930043,1754614248977,-460.0,0.00023013,2]
[377930044,1754614248988,-460.0,0.00023013,2]
[377930047,1754614248999,-460.0,0.00023013,2]
[377930049,1754614249010,-844.8,0.00023013,2]
[377930051,1754614249021,-948.24,0.00023013,2]
[377930052,1754614249031,-460.0,0.00023013,2]
[377930054,1754614249041,-576.25,0.00023013,2]
[377930056,1754614249051,-460.0,0.00023013,2]
[377930059,1754614249062,-460.0,0.00023013,2]
[377930060,1754614249072,-516.59,0.00023013,2]
[377930062,1754614249082,-462.69260232,0.00023013,2]
[377930064,1754614249092,-460.0,0.00023013,2]
[377930066,1754614249102,-812.29,0.00023013,2]
[377930068,1754614249112,-460.0,0.00023013,2]
[377930070,1754614249123,-619.75,0.00023013,2]
[377930072,1754614249133,-889.1,0.00023013,2]
[377930075,1754614249143,-460.0,0.00023013,2]
[377930077,1754614249154,-460.0,0.00023013,2]
[377930079,1754614249165,-460.0,0.00023013,2]
[377930081,1754614249176,-460.0,0.00023013,2]
[377930083,1754614249186,-460.0,0.00023013,2]
[377930085,1754614249196,-569.68,0.00023013,2]
[377930087,1754614249207,-460.0,0.00023013,2]
[377930089,1754614249218,-972.76,0.00023013,2]
[377930091,1754614249229,-460.0,0.00023013,2]
[377930093,1754614249239,-576.57,0.00023013,2]
[377930095,1754614249250,-460.0,0.00023013,2]
[377930097,1754614249261,-981.75,0.00023013,2]
[377930099,1754614249272,-460.0,0.00023013,2]
[377930101,1754614249282,-460.0,0.00023013,2]
[377930115,1754614249408,-157.0,0.00023014,7]
[377930117,1754614249418,-1000.0,0.00023068,2]
[377930119,1754614249428,-1500.0,0.00023068,2]
[377930121,1754614249437,-1000.0,0.00023068,2]
[377930123,1754614249446,-1500.0,0.00023068,2]
[377930125,1754614249455,-500.0,0.00023068,2]
[377930127,1754614249465,-1000.0,0.00023068,2]
[377930129,1754614249474,-1500.0,0.00023068,2]
[377930131,1754614249484,-150.59244816,0.00023145,7]
[377930133,1754614249494,-500.0,0.00023157,2]
[377930135,1754614249504,-500.0,0.00023157,2]
[377930137,1754614249514,-500.0,0.00023157,2]
[377930139,1754614249524,-2162.41243546,0.00023235,2]
[377930141,1754614249534,-539.2,0.00023245,2]
[377930143,1754614249544,-155.74,0.00023245,2]
[377930145,1754614249555,-1365.56,0.00023277,3]
[377930147,1754614249564,-682.78,0.00023277,3]
[377930149,1754614249574,-341.38,0.00023277,3]
[377930151,1754614249584,-151.0,0.00023277,7]
[377930153,1754614249595,-151.0,0.00023277,7]
[377930155,1754614249605,-211.823902,0.00023277,7]
[377930157,1754614249614,-151.0,0.00023277,7]
[377930159,1754614249623,-211.823902,0.00023277,7]
[377930161,1754614249633,-151.0,0.00023277,7]
[377930163,1754614249643,-151.0,0.00023277,7]
[377930165,1754614249653,-460.0,0.00023287,2]
[377930167,1754614249662,-409.97198013,0.00023287,2]
[377930169,1754614249671,-460.0,0.00023287,2]
[377930171,1754614249680,-460.0,0.00023287,2]
[377930173,1754614249689,-151.0,0.00023287,7]
[377930175,1754614249698,-151.0,0.00023287,7]
[377930177,1754614249708,-460.0,0.00023287,2]
[377930179,1754614249717,-460.0,0.00023287,2]
[377930181,1754614249726,-151.0,0.00023287,7]
[377930183,1754614249736,-151.0,0.00023287,7]
[377930185,1754614249745,-151.0,0.00023287,7]
[377930187,1754614249755,-460.0,0.00023287,2]
[377930189,1754614249765,-460.0,0.00023287,2]
[377930191,1754614249774,-460.0,0.00023287,2]
[377930193,1754614249784,-460.0,0.00023287,2]
[377930195,1754614249794,-473.77,0.00023287,2]
[377930197,1754614249804,-460.0,0.00023287,2]
[377930199,1754614249814,-460.0,0.00023287,2]
[377930201,1754614249823,-151.67495342,0.00023287,2]
[377930203,1754614249833,-460.0,0.00023287,2]
[377930205,1754614249842,-888.39,0.00023287,2]
[377930207,1754614249851,-228.65398629,0.00023287,2]
[377930209,1754614249861,-1321.14,0.00023287,2]
[377930211,1754614249870,-569.86,0.00023287,2]
[377930213,1754614249880,-701.29,0.00023287,2]
[377930215,1754614249890,-460.0,0.00023287,2]
[377930217,1754614249899,-1644.58,0.00023287,2]
[377930218,1754614249909,-151.0,0.00023287,7]
[377930220,1754614249919,-460.0,0.00023287,2]
[377930222,1754614249928,-460.0,0.00023287,2]
[377930224,1754614249938,-844.8,0.00023287,2]
[377930226,1754614249948,-948.24,0.00023287,2]
[377930228,1754614249958,-460.0,0.00023287,2]
[377930230,1754614249967,-576.25,0.00023287,2]
[377930232,1754614249977,-460.0,0.00023287,2]
[377930234,1754614249986,-460.0,0.00023287,2]
[377930236,1754614249997,-516.59,0.00023287,2]
[377930238,1754614250008,-460.0,0.00023287,2]
[377930240,1754614250018,-812.29,0.00023287,2]
[377930242,1754614250027,-460.0,0.00023287,2]
[377930244,1754614250036,-619.75,0.00023287,2]
[377930246,1754614250046,-889.1,0.00023287,2]
[377930248,1754614250056,-460.0,0.00023287,2]
[377930250,1754614250066,-460.0,0.00023287,2]
[377930252,1754614250075,-460.0,0.00023287,2]
[377930254,1754614250085,-460.0,0.00023287,2]
[377930256,1754614250094,-460.0,0.00023287,2]
[377930258,1754614250104,-569.68,0.00023287,2]
[377930260,1754614250114,-460.0,0.00023287,2]
[377930262,1754614250123,-972.76,0.00023287,2]
[377930264,1754614250133,-460.0,0.00023287,2]
[377930266,1754614250143,-576.57,0.00023287,2]
[377930268,1754614250155,-230.55,0.00023287,2]
[377930270,1754614250165,-981.75,0.00023287,2]
[377930272,1754614250174,-460.0,0.00023287,2]
[377930274,1754614250184,-460.0,0.00023287,2]
[377930276,1754614250194,-151.0,0.00023352,7]
[377930278,1754614250204,-151.0,0.00023352,7]
[377930280,1754614250214,-151.0,0.00023352,7]
[377930282,1754614250223,-161.125838,0.00023352,7]
[377930284,1754614250233,-151.0,0.00023352,7]
[377930286,1754614250243,-299.597932,0.00023352,7]
[377930288,1754614250254,-151.0,0.00023352,7]
[377930290,1754614250264,-151.0,0.00023352,7]
[377930292,1754614250274,-299.597932,0.00023352,7]
[377930294,1754614250283,-151.0,0.00023352,7]
[377930296,1754614250293,-151.0,0.00023352,7]
[377930298,1754614250302,-151.0,0.00023352,7]
[377930300,1754614250312,-225.663996,0.00023352,7]
[377930302,1754614250321,-151.0,0.00023352,7]
[377930304,1754614250330,-151.0,0.00023352,7]
[377930306,1754614250340,-151.0,0.00023352,7]
[377930308,1754614250349,-1304.521677,0.00023352,7]
[377930310,1754614250359,-213.478478,0.00023352,7]
[377930312,1754614250368,-1304.521677,0.00023352,7]
[377930314,1754614250378,-213.478478,0.00023352,7]
[377930316,1754614250387,-151.0,0.00023352,7]
[377930318,1754614250396,-256.224555,0.00023352,7]
[377930320,1754614250406,-256.224555,0.00023352,7]
[377930322,1754614250415,-5888.0,0.00023352,2]
[377930324,1754614250425,-500.0,0.0002338,2]
[377930326,1754614250434,-608.99655383,0.00023421,2]
[377930328,1754614250444,-500.0,0.00023421,2]
[377930330,1754614250454,-432.26826119,0.00023421,2]
[377930332,1754614250466,-867.63426456,0.00023421,2]
[377930334,1754614250475,-509.11335543,0.00023421,2]
[377930336,1754614250485,-500.0,0.00023421,2]
[377930338,1754614250494,-501.57043918,0.00023421,2]
[377930340,1754614250505,-500.0,0.00023421,2]
[377930342,1754614250515,-1000.0,0.00023421,2]
[377930344,1754614250525,-743.17476082,0.00023421,2]
[377930346,1754614250535,-1000.0,0.00023421,2]
[377930348,1754614250545,-1000.0,0.00023421,2]
[377930350,1754614250555,-1000.0,0.00023421,2]
[377930352,1754614250564,-500.0,0.00023421,2]
[377930354,1754614250574,-1000.0,0.00023421,2]
[377930356,1754614250583,-1005.24553618,0.00023421,2]
[377930358,1754614250593,-1000.0,0.00023421,2]
[377930360,1754614250603,-157.33910326,0.00023421,2]
[377930362,1754614250612,-500.0,0.00023421,2]
[377930364,1754614250622,-1000.0,0.00023421,2]
[377930366,1754614250632,-1001.71365784,0.00023421,2]
[377930367,1754614250641,-759.90691892,0.00023421,2]
[377930369,1754614250650,-1000.0,0.00023421,2]
[377930371,1754614250660,-1000.0,0.00023421,2]
[377930373,1754614250669,-1040.39197666,0.00023421,2]
[377930375,1754614250678,-1000.0,0.00023421,2]
[377930377,1754614250688,-1000.0,0.00023421,2]
[377930379,1754614250698,-500.0,0.00023421,2]
[377930381,1754614250708,-1000.0,0.00023421,2]
[377930383,1754614250718,-1000.0,0.00023421,2]
[377930385,1754614250727,-1000.0,0.00023421,2]
[377930387,1754614250737,-1000.0,0.00023421,2]
[377930389,1754614250746,-1000.0,0.00023421,2]
[377930391,1754614250757,-500.0,0.00023421,2]
[377930393,1754614250766,-500.0,0.00023421,2]
[377930394,1754614250776,-1000.0,0.00023421,2]
[377930396,1754614250785,-1039.77949743,0.00023421,2]
[377930398,1754614250794,-1008.09554386,0.00023421,2]
[377930400,1754614250805,-151.0,0.00023421,7]
[377930402,1754614250814,-151.0,0.00023421,7]
[377930404,1754614250823,-151.0,0.00023421,7]
[377930406,1754614250832,-151.0,0.00023421,7]
[377930408,1754614250842,-151.0,0.00023421,7]
[377930410,1754614250851,-555.59487,0.00023421,7]
[377930412,1754614250861,-555.59487,0.00023421,7]
[377930414,1754614250871,-151.0,0.00023421,7]
[377930416,1754614250881,-151.0,0.00023421,7]
[377930418,1754614250891,-260.0,0.00023429,2]
[377930420,1754614250901,-151.0,0.000235,10]
[377930422,1754614250910,-737.10675791,0.00023561,2]
[377930424,1754614250920,-460.0,0.00023561,2]
[377930426,1754614250929,-237.564252,0.00023561,7]
[377930427,1754614250939,-237.564252,0.00023561,7]
[377930429,1754614250948,-151.0,0.00023561,7]
[377930431,1754614250958,-151.0,0.00023561,7]
[377930433,1754614250967,-151.0,0.00023561,7]
[377930435,1754614250977,-284.005752,0.00023561,7]
[377930437,1754614250986,-353.228551,0.00023561,7]
[377930439,1754614250996,-151.0,0.00023561,7]
[377930441,1754614251008,-151.0,0.00023561,7]
[377930443,1754614251018,-160.675928,0.00023561,7]
[377930445,1754614251027,-151.996731,0.00023561,7]
[377930447,1754614251037,-151.0,0.00023561,7]
[377930448,1754614251046,-151.0,0.00023561,7]
[377930450,1754614251055,-151.0,0.00023561,7]
[377930452,1754614251065,-151.0,0.00023561,7]
[377930454,1754614251075,-151.0,0.00023561,7]
[377930456,1754614251084,-151.0,0.00023561,7]
[377930458,1754614251093,-460.0,0.00023561,2]
[377930460,1754614251102,-528.66619893,0.00023561,2]
[377930462,1754614251112,-277.59336947,0.00023561,2]
[377930464,1754614251121,-604.580499,0.00023561,7]
[377930465,1754614251130,-460.0,0.00023561,2]
[377930467,1754614251139,-604.580499,0.00023561,7]
[377930469,1754614251154,-460.0,0.00023561,2]
[377930471,1754614251163,-460.0,0.00023561,2]
[377930473,1754614251174,-455.5990981,0.00023561,2]
[377930475,1754614251183,-460.0,0.00023561,2]
[377930477,1754614251194,-460.0,0.00023561,2]
[377930479,1754614251204,-473.77,0.00023561,2]
[377930481,1754614251214,-460.0,0.00023561,2]
[377930483,1754614251223,-460.0,0.00023561,2]
[377930484,1754614251233,-460.0,0.00023561,2]
[377930486,1754614251243,-888.39,0.00023561,2]
[377930488,1754614251254,-1321.14,0.00023561,2]
[377930490,1754614251263,-701.29,0.00023561,2]
[377930492,1754614251272,-460.0,0.00023561,2]
[377930494,1754614251282,-1644.58,0.00023561,2]
[377930496,1754614251291,-460.0,0.00023561,2]
[377930498,1754614251301,-460.0,0.00023561,2]
[377930500,1754614251311,-844.8,0.00023561,2]
[377930502,1754614251320,-948.24,0.00023561,2]
[377930504,1754614251331,-460.0,0.00023561,2]
[377930506,1754614251339,-576.25,0.00023561,2]
[377930508,1754614251349,-460.0,0.00023561,2]
[377930510,1754614251359,-460.0,0.00023561,2]
[377930511,1754614251368,-516.59,0.00023561,2]
[377930513,1754614251378,-460.0,0.00023561,2]
[377930515,1754614251387,-812.29,0.00023561,2]
[377930517,1754614251396,-460.0,0.00023561,2]
[377930519,1754614251406,-889.1,0.00023561,2]
[377930521,1754614251416,-619.75,0.00023561,2]
[377930523,1754614251425,-460.0,0.00023561,2]
[377930525,1754614251434,-460.0,0.00023561,2]
[377930526,1754614251443,-460.0,0.00023561,2]
[377930528,1754614251453,-460.0,0.00023561,2]
[377930530,1754614251462,-460.0,0.00023561,2]
[377930532,1754614251471,-569.68,0.00023561,2]
[377930534,1754614251481,-972.76,0.00023561,2]
[377930536,1754614251491,-199.75199465,0.00023561,2]
[377930538,1754614251500,-576.57,0.00023561,2]
[377930540,1754614251510,-981.75,0.00023561,2]
[377930542,1754614251519,-357.02,0.00023561,2]
[377930544,1754614251528,-657.8,0.00023578,2]
[377930545,1754614251538,-151.0,0.000236,8]
[377930547,1754614251548,-151.0,0.00023616,7]
[377930549,1754614251557,-211.823902,0.00023616,7]
[377930551,1754614251567,-151.0,0.00023616,7]
[377930553,1754614251576,-211.823902,0.00023616,7]
[377930555,1754614251586,-151.0,0.00023616,7]
[377930557,1754614251596,-151.0,0.00023616,7]
[377930559,1754614251606,-2000.0,0.00023616,2]
[377930560,1754614251615,-2000.0,0.00023616,2]
[377930562,1754614251625,-2000.0,0.00023616,2]
[377930564,1754614251636,-1000.0,0.00023705,2]
[377930566,1754614251646,-826.13675322,0.00023705,2]
[377930568,1754614251655,-996.16745004,0.00023705,2]
[377930570,1754614251664,-420.0,0.00023711,2]
[377930572,1754614251674,-14690.61881712,0.0002372,2]
[377930574,1754614251683,-151.0,0.000238,8]
[377930576,1754614251693,-151.0,0.000238,10]
[377930578,1754614251703,-1680.0,0.00023823,2]
[377930580,1754614251712,-151.0,0.00023835,7]
[377930581,1754614251721,-151.0,0.00023835,7]
[377930583,1754614251731,-218.692991,0.00023835,7]
[377930585,1754614251740,-151.0,0.00023835,7]
[377930587,1754614251750,-460.0,0.00023835,2]
[377930589,1754614251763,-151.0,0.00023835,7]
[377930591,1754614251772,-151.0,0.00023835,7]
[377930592,1754614251782,-460.0,0.00023835,2]
[377930594,1754614251791,-254.84,0.00023835,2]
[377930596,1754614251800,-460.0,0.00023835,2]
[377930598,1754614251810,-473.77,0.00023835,2]
[377930600,1754614251819,-460.0,0.00023835,2]
[377930602,1754614251829,-460.0,0.00023835,2]
[377930603,1754614251839,-888.39,0.00023835,2]
[377930605,1754614251848,-1321.14,0.00023835,2]
[377930607,1754614251858,-701.29,0.00023835,2]
[377930609,1754614251868,-460.0,0.00023835,2]
[377930611,1754614251878,-1644.58,0.00023835,2]
[377930613,1754614251888,-460.0,0.00023835,2]
[377930615,1754614251898,-460.0,0.00023835,2]
[377930617,1754614251909,-844.8,0.00023835,2]
[377930619,1754614251918,-948.24,0.00023835,2]
[377930621,1754614251928,-460.0,0.00023835,2]
[377930622,1754614251937,-576.25,0.00023835,2]
[377930624,1754614251947,-460.0,0.00023835,2]
[377930626,1754614251957,-460.0,0.00023835,2]
[377930628,1754614251966,-516.59,0.00023835,2]
[377930630,1754614251975,-460.0,0.00023835,2]
[377930632,1754614251985,-812.29,0.00023835,2]
[377930634,1754614251995,-460.0,0.00023835,2]
[377930636,1754614252007,-889.1,0.00023835,2]
[377930637,1754614252017,-619.75,0.00023835,2]
[377930639,1754614252027,-460.0,0.00023835,2]
[377930641,1754614252037,-460.0,0.00023835,2]
[377930643,1754614252047,-460.0,0.00023835,2]
[377930645,1754614252057,-460.0,0.00023835,2]
[377930647,1754614252067,-460.0,0.00023835,2]
[377930649,1754614252076,-569.68,0.00023835,2]
[377930651,1754614252086,-972.76,0.00023835,2]
[377930653,1754614252096,-576.57,0.00023835,2]
[377930654,1754614252105,-981.75,0.00023835,2]
[377930656,1754614252115,-151.0,0.000239,10]
[377930658,1754614252125,-600.0,0.00023904,2]
[377930660,1754614252134,-150.0,0.00023927,2]